Cogmind - Beta 17 @@@ ROGUE MODE // 2026.07.17 @ 21:44:42 Player: Tikijian Result: Destroyed by S-10 Pest with Light Assault Rifle Performance ------------- Evolutions (1) 500 Regions Visited (3) 600 Robots Destroyed (24) 120 Value Destroyed (655) 655 Prototype IDs (0) 0 Alien Tech Used (0) 0 Bonus (0) 0 TOTAL SCORE: 1875 Bonus ------- None Cogmind --------- Core Integrity 0/400 Matter 300/300 Energy 100/100 System Corruption 6% Temperature Cool (0) Movement Core (100) Ox1 Location -9/Mines Parts ------- > --- POWER (1) -------- (None) > --- PROPULSION (3) --- (None) > --- UTILITY (2) ------ Small Storage Unit > --- WEAPON (3) ------- (None) > --- INVENTORY (8) ---- Ion Engine Ion Engine Light Ion Engine Aluminum Leg Aluminum Leg Wheel Peak State ------------ > --- POWER ------------ Ion Engine > --- PROPULSION ------- Light Treads Light Treads Light Treads > --- UTILITY ---------- Heat Sink Small Storage Unit > --- WEAPON ----------- Small Laser Small Laser Small Laser > --- INVENTORY -------- Ion Engine Ion Engine Light Nuclear Core Aluminum Leg Aluminum Leg Wheel Small Laser Grenade Launcher [Rating: 10] Favorites ----------- Power Ion Engine Engine Ion Engine Power Core Light Nuclear Core Propulsion Light Treads Treads Light Treads Leg Aluminum Leg Wheel Wheel Utility Small Storage Unit Device Heat Sink Storage Small Storage Unit Weapon Small Laser Energy Gun Small Laser Launcher Grenade Launcher Special Weapon Mining Laser Special Melee Weapon Datajack Build | -11 -10 -9 -9 ------- Run | Yrd Mat Mat Min Slots Evolved 2 | . . 2 . Power . | . . . . Propulsion 1 | . . 1 . Utility . | . . . . Weapon 1 | . . 1 . Parts Attached 23 | 6 5 12 . Power 4 | 1 . 3 . Engine 3 | 1 . 2 . Core 1 | . . 1 . Reactor . | . . . . Propulsion 7 | 2 1 4 . Treads 5 | 2 . 3 . Leg 1 | . . 1 . Wheel 1 | . 1 . . Hover . | . . . . Flight . | . . . . Utility 2 | 1 1 . . Device 1 | . 1 . . Storage 1 | 1 . . . Processor . | . . . . Hackware . | . . . . Protection . | . . . . Artifact . | . . . . Weapon 10 | 2 3 5 . Energy Gun 6 | 2 2 2 . Energy Cannon . | . . . . Ballistic Gun . | . . . . Ballistic Cannon . | . . . . Launcher 1 | . . 1 . Special Weapon 2 | . . 2 . Impact Weapon . | . . . . Slashing Weapon . | . . . . Piercing Weapon . | . . . . Special Melee Weapon 1 | . 1 . . Unidentified Prototypes . | . . . . Parts Lost 20 | . 2 12 6 Power 4 | . . 3 1 Propulsion 5 | . . 3 2 Utility 1 | . . 1 . Weapon 10 | . 2 5 3 Highest Loss Streak 6 | . 1 4 6 To Critical Strikes . | . . . . Average Backups 6 | 3 7 6 6 Power 2 | . 1 2 3 Propulsion 2 | 1 3 2 3 Utility . | . . . . Weapon 1 | . 1 1 . Tool/Special . | . . . . Unused Backups 6 | . 2 . 4 Power 3 | . . . 3 Propulsion 3 | . 2 . 1 Utility . | . . . . Weapon . | . . . . Tool/Special . | . . . . Average Slot Usage (%) 84 | . 95 82 67 Engine 11 | . 14 9 10 Treads 24 | . 24 28 17 Device 7 | . 11 7 . Storage 12 | . 14 11 11 Energy Gun 19 | . 27 21 . Launcher 2 | . . 2 9 Special Weapon 3 | . . . 18 Peak Build Rating 10 | 6 8 10 8 Average Rating 7 | 5 6 7 6 On Entrance 5 | . 6 7 8 Avg Prop Armor Cover (%) 10 | . . 10 . Naked Turns . | . . . . Heaviest Build 20 | 13 14 20 20 Greatest Support 60 | 40 40 60 40 Greatest Overweight (x) 6 | . 1 1 6 Average Overweight (x) . | . . . . Largest Inventory Capacity 8 | 8 8 8 8 Average Capacity 7 | 7 8 8 8 Most Carried 8 | 6 8 8 6 Average Carried 6 | 3 7 6 6 Final Capacity 8 | 8 8 8 8 Final Carried 8 | 6 8 6 6 Class Distribution -------------------- 65% | Mutant 34% | Gunner Dominant Class ---------------- Mutant | -10/Materials Mutant | -9/Materials Gunner | -9/Mines Resources | -11 -10 -9 -9 ----------- Run | Yrd Mat Mat Min Matter Collected 464 | 260 30 163 11 Remotely . | . . . . Salvage Created 857 | . 327 530 . Parts 45 | . 15 30 . Haulers Intercepted . | . . . . Recyclers Shooed 2 | . 1 1 . Parts Field Recycled . | . . . . Retrieved Matter . | . . . . Parts Self-Destructed . | . . . . Prevented . | . . . . Parts Restored . | . . . . Kills | -11 -10 -9 -9 ------- Run | Yrd Mat Mat Min Combat Hostiles Destroyed 19 | . 6 13 . Melee 1 | . 1 . . Guns 16 | . 5 11 . AOE 2 | . . 2 . Classes Destroyed 7 | . 3 4 . Worker 1 | . 1 . . Recycler 2 | . 1 1 . Watcher 2 | . . 2 . Swarmer 4 | . . 4 . Grunt 12 | . 6 6 . Brawler 1 | . . 1 . Sentry 2 | . . 2 . Best Kill Streak 5 | . 4 5 . Combat Bots Only 5 | . 2 5 . Max Kills in Single Turn 1 | . 1 1 . Gunslinging . | . . . . Exploded 1 | . . 1 . Melee 1 | . 1 . . Uniques/NPCs Destroyed . | . . . . Combat | -11 -10 -9 -9 -------- Run | Yrd Mat Mat Min Hostile Shots Fired 275 | . 66 108 101 Missed 63 | . 17 22 24 Hits 212 | . 49 86 77 Melee 5 | . . 5 . Projectile 207 | . 49 81 77 Critical Strikes 6 | . 1 3 2 Damage Taken 2272 | . 577 1089 606 Core 565 | . 162 116 287 Absorbed by Shields . | . . . . Core Remaining (%) 67 | 100 35 . . Volleys Fired 84 | . 29 52 3 Largest 3 | . 2 3 2 Hottest 200 | . 80 120 200 Shots Fired 173 | . 52 116 5 Gun 162 | . 52 110 . Cannon . | . . . . Launcher 7 | . . 6 1 Special 4 | . . . 4 Kinetic . | . . . . Thermal 163 | . 49 110 4 Explosive 7 | . . 6 1 Electromagnetic 3 | . 3 . . Robot Hit Streak 21 | . 9 21 . Robot Miss Streak 5 | . 3 3 5 Penetration Max . | . . . . Secondary Targets 4 | . . 4 . Max Gunslinging Chain 1 | . . 1 . Shots Hit Robots 117 | . 36 81 . Core Hits 50 | . 17 32 1 Critical Kills . | . . . . Critical Parts Destroyed . | . . . . Critical Strikes . | . . . . Melee Attacks . | . . . . Impact . | . . . . Slashing . | . . . . Piercing . | . . . . Sneak Attacks . | . . . . Combat Hostiles . | . . . . Follow-up Attacks . | . . . . Damage Inflicted 1541 | . 437 1098 6 Guns 1261 | . 425 836 . Cannons . | . . . . Explosions 246 | . . 246 . Melee . | . . . . Ramming 34 | . 12 16 6 Kinetic . | . . . . Thermal 1233 | . 397 836 . Explosive 246 | . . 246 . Electromagnetic 28 | . 28 . . Impact . | . . . . Slashing . | . . . . Piercing . | . . . . Highest Corruption 6 | . 1 6 6 Average Corruption 4 | . 1 5 6 Corruption Purged . | . . . . Corruption Blocked . | . . . . Effects 19 | . 3 8 8 Message Errors 4 | . 1 1 2 Matter Fused 3 | . . 1 2 Heat Flow Errors 2 | . . 1 1 Energy Discharges 1 | . 1 . . Data Loss (minor) 4 | . . 2 2 Data Loss (major) 1 | . . 1 . Misfires 1 | . 1 . . Alerts 1 | . . . 1 Weapon Failures 2 | . . 2 . Overload Shots . | . . . . Overflow Damage 6 | . . 6 . Projectiles . | . . . . Explosions 6 | . . 6 . Melee . | . . . . Knockbacks . | . . . . Impact . | . . . . Kinetic . | . . . . Secondary . | . . . . Self-Inflicted Damage 19 | . . 16 3 Shots 1 | . . 1 . Rammed 12 | . 4 5 3 Targets Rammed 13 | . 5 5 3 Kicked . | . . . . Crushed 1 | . 1 . . Highest Temperature 164 | . 96 164 126 Average Temperature 61 | . 48 63 66 Received Heat Transfer 669 | . 279 390 . Siege Activations . | . . . . Martial Activations . | . . . . Shielding Activations . | . . . . Robots Disrupted . | . . . . Combat Hostiles . | . . . . Robots Corrupted . | . . . . Combat Hostiles . | . . . . Parts Fried . | . . . . Impact Corruptions . | . . . . Robots Melted . | . . . . Combat Hostiles . | . . . . Parts Melted 2 | . . 2 . Heat Transferred 2800 | . 900 1900 . Parts Sabotaged . | . . . . Parts Stolen . | . . . . Parts Stripped . | . . . . Power Chain Reactions . | . . . . Alert | -11 -10 -9 -9 ------- Run | Yrd Mat Mat Min Maximum Alert Level . | . . . . Low Security (%) 100 | 100 100 100 100 Level 1 . | . . . . Level 2 . | . . . . Level 3 . | . . . . Level 4 . | . . . . Level 5 . | . . . . High Security . | . . . . Max Security . | . . . . Peak Influence 105 | . 59 105 19 Initial 19 | . . 4 19 Average 24 | . 14 48 2 Influence Increases 585 | . 179 395 11 Destroy 0b10 Robot/C 380 | . 120 260 . Destroy 0b10 Robot/NC 25 | . 10 15 . Destroy Leader 94 | . 30 64 . Successful Hack 10 | . 4 6 . Disable Machine 15 | . . 15 . Destroy Structure 31 | . . 20 11 Lose Combat Pursuer 30 | . 15 15 . Influence Decreases 585 | . 168 355 62 Entered New Map 39 | . . 7 32 Time Decay 362 | . 114 228 20 Lost Part 130 | . . 120 10 Purge Threat 54 | . 54 . . Squads Dispatched 5 | . 3 2 . Investigation 2 | . 1 1 . Extermination . | . . . . Reinforcement 3 | . 2 1 . Assault . | . . . . Garrison . | . . . . Intercept . | . . . . Searches Triggered . | . . . . Construction Impeded . | . . . . Haulers Reinforced . | . . . . Active Scanning Responses . | . . . . Cargo Convoy Interrupts . | . . . . Stealth | -11 -10 -9 -9 --------- Run | Yrd Mat Mat Min Distress Signals 3 | . 2 1 . Communications Jammed . | . . . . Distress Signals . | . . . . Times Spotted 43 | . 16 20 7 Peak Tracking Total 6 | . 4 5 6 Tactical Retreats 2 | . 1 1 . Traps | -11 -10 -9 -9 ------- Run | Yrd Mat Mat Min Traps Triggered 3 | . 1 2 . Indirectly . | . . . . Trap Hack Attempts . | . . . . Triggered . | . . . . Disarmed . | . . . . Reprogrammed . | . . . . Reused . | . . . . Traps Extracted . | . . . . Installed . | . . . . Triggered . | . . . . Machines | -11 -10 -9 -9 ---------- Run | Yrd Mat Mat Min Machines Disabled 1 | . . 1 . Max in Single Turn 1 | . . 1 . Machines Repaired . | . . . . Machines Dismantled . | . . . . Machines Sabotaged . | . . . . Overloaded Fab Kills . | . . . . Hacking | -11 -10 -9 -9 --------- Run | Yrd Mat Mat Min Machines Accessed 6 | . 4 2 . Terminals 5 | . 3 2 . Fabricators . | . . . . Repair Stations . | . . . . Recycling Units 1 | . 1 . . Scanalyzers . | . . . . Garrison Access . | . . . . Total Hacks 16 | . 12 4 . Successful 10 | . 9 1 . Failed 6 | . 3 3 . Catastrophic . | . . . . Database Lockouts . | . . . . Manual . | . . . . Terminals 13 | . 9 4 . Fabricators . | . . . . Repair Stations . | . . . . Recycling Units 3 | . 3 . . Scanalyzers . | . . . . Garrison Access . | . . . . Terminal Hacks 7 | . 6 1 . Record 1 | . 1 . . Robot Analysis 2 | . 1 1 . Alert Level 1 | . 1 . . Unreport Threat 1 | . 1 . . Locate Traps 1 | . 1 . . Investigation Status 1 | . 1 . . Fabricator Hacks . | . . . . Repair Station Hacks . | . . . . Recycling Unit Hacks 3 | . 3 . . Recycle Component 1 | . 1 . . Retrieve Matter 1 | . 1 . . Retrieve Components 1 | . 1 . . Scanalyzer . | . . . . Garrison Access Hacks . | . . . . Unauthorized Hacks . | . . . . Terminals . | . . . . Fabricators . | . . . . Repair Stations . | . . . . Recycling Units . | . . . . Scanalyzers . | . . . . Garrison Access . | . . . . Data Cores Recovered . | . . . . Used . | . . . . Hacking Detections 4 | . 3 1 . Full Trace Events 2 | . 2 . . Feedback Events . | . . . . Feedback Blocked . | . . . . Robot Schematics Acquired . | . . . . Robots Built . | . . . . Authchips . | . . . . Time . | . . . . Total Robot Build Rating . | . . . . Part Schematics Acquired . | . . . . Parts Built . | . . . . Authchips . | . . . . Time . | . . . . Total Part Build Rating . | . . . . Part Studies Acquired . | . . . . Parts Repaired . | . . . . Time . | . . . . Parts Recycled 1 | . 1 . . Recycled Matter . | . . . . Retrieved Matter . | . . . . Retrieved Components 1 | . 1 . . Parts Scanalyzed . | . . . . Part Schematics Acquired . | . . . . Parts Damaged . | . . . . Bothacking | -11 -10 -9 -9 ------------ Run | Yrd Mat Mat Min Used RIF Installer . | . . . . Robots Hacked . | . . . . Non-combat . | . . . . Combat . | . . . . Robot Hacks Applied . | . . . . Relay Couplers Released . | . . . . Fabnet Peak Effective % . | . . . . Robots Rewired . | . . . . Allies Hacked . | . . . . Hacks Repelled . | . . . . Allies | -11 -10 -9 -9 -------- Run | Yrd Mat Mat Min Total Allies . | . . . . Largest Group . | . . . . Highest-Rated Group . | . . . . Highest-Rated Ally . | . . . . Total Orders . | . . . . Ally Attacks . | . . . . Total Damage . | . . . . Kills . | . . . . Allies Corrupted . | . . . . Allies Melted . | . . . . Intel | -11 -10 -9 -9 ------- Run | Yrd Mat Mat Min Active Infowar (turns) . | . . . . Robot Analysis Total 2 | . 1 1 . Derelict Logs Recovered . | . . . . Drone Launches . | . . . . Drone Recoveries . | . . . . Exploration | -11 -10 -9 -9 ------------- Run | Yrd Mat Mat Min Turns Passed 1398 | 127 451 559 261 Spaces Moved 704 | 77 242 231 154 Core 42 | 12 . . 30 Treads 600 | 65 186 225 124 Legs . | . . . . Wheels 62 | . 56 6 . Hover . | . . . . Flight . | . . . . Fastest Speed 50 | 50 95 95 100 Average Speed 151 | 142 144 158 156 Slowest Speed 350 | 160 160 160 350 Overloaded Moves . | . . . . Propulsion Burnouts . | . . . . Robots Hopped . | . . . . Potential Cave-ins . | . . . . Cave-ins Triggered . | . . . . Exploration Rate (%) 35 | 6 62 32 40 Regions Visited 3 Branch Regions 1 Pre-discovered Areas . | . . . . Known Exits Taken . | . . . . Unknown Exits Taken 3 | 1 1 1 . Scrap Searched 1 | . . . 1 Spaces Dug . | . . . . Terrain Destroyed 28 | . . 17 11 Melee . | . . . . Projectile 2 | . . . 2 AOE 26 | . . 17 9 Terrain Rammed . | . . . . Walls Destroyed . | . . . . Machines Disabled . | . . . . Actions | -11 -10 -9 -9 --------- Run | Yrd Mat Mat Min Total 859 | 94 287 318 160 Wait . | . . . . Move 701 | 76 241 230 154 Hop . | . . . . Pick Up 29 | 12 5 12 . Fast Attach 2 | . 1 1 . Attach 20 | 6 2 12 . Detach 1 | . 1 . . Swap 6 | . 2 4 . Drop 3 | . 1 2 . Fire 84 | . 29 52 3 Melee . | . . . . Ram 3 | . . . 3 Kick . | . . . . Crush 10 | . 5 5 . Escape Stasis . | . . . . Rewire . | . . . . Trap . | . . . . Miscellaneous . | . . . . Route ------- -11/Scrapyard -10/Materials -9/Materials -9/Mines (discovered 1 exit: [*Mat]) History --------- Turn | Location | Event 15 | -11/Scrapyard | Discovered new exit (range 16) 128 | -11/Scrapyard | Entered Materials 309 | -10/Materials | Build established: Mutant 568 | -10/Materials | Discovered new exit (range 12) 569 | -10/Materials | Core integrity fell below 50% 579 | -10/Materials | Entered another Materials area 579 | -9/Materials | Evolved 2 slots: Propulsion x1, Weapon x1 976 | -9/Materials | Lost 4 parts (1p1n1u1w) 1044 | -9/Materials | Lost 4 parts (1p2n1w) 1109 | -9/Materials | Discovered new exit (range 7) 1138 | -9/Materials | Entered Mines 1161 | -9/Mines | Discovered new exit (range 14) 1365 | -9/Mines | Core integrity fell below 50% 1394 | -9/Mines | Core integrity fell below 20% 1399 | -9/Mines | Destroyed by S-10 Pest with Light Assault Rifle Last Messages --------------- U-05 Engineer builds a Wall. K-01 Serf collects debris. U-05 Engineer builds a Wall. Slammed into K-01 Serf. System corrupted: Component data lost. U-05 Engineer builds a Wall. K-01 Serf collects debris. U-05 Engineer lays Concrete. Rnf. Ion Engine destroyed. U-05 Engineer builds a Wall. K-01 Serf collects debris. Searching scrap... Found Flight Unit. Found Tractor Beam. Found Heat Sink. Found 52 Matter. Acquired 11 matter. K-01 Serf collects debris. System corrupted: Heat flow error (+128). Slammed into S-10 Pest. Map ----- +----------------------------------------------------+ | | | | | | | | | | | | | | | | | | | | | | | | | | | | | | | | | ????????????????????????????????????????????????? | | ????????????????????????????????????????????????? | | ????????????????????????????????????????????????? | | ????????????????????????????????????????????????? | | ?????????????????????#########??????????????????? | | ???????????????????### #??????????????????? | | ???????????????????? """ #??????????????????? | | ?????????????????????# """ #??????????????????? | | ?????????????????????# """ #??????????????????? | | ?????????????????????# @ s#??????????????????? | | ?????????????????????# %s #??????????????????? | | ?????????????????????#####%###??????????????????? | | ?????????????????????????#s#????????????????????? | | ?????????????????????????# #????????????????????? | | ?????????????????????????# #???#????????????????? | | ??????????????????# ###### ### #????????????????? | | ??????????????????# $ #????????????????? | | ??????????????????### ##### ####????????????????? | | ??????????????????????????# #???????????????????? | | ??????????????????????????# #???######??????????? | | ??????????????????????????# #???# ######????????? | | ??????????????????????????# #???? ?????????? | | ??????????????????????????# #???? ??????????? | | ??????????????????????????# #????# #???????????? | | ??????????????????????????#=###### #????????##?? | | ??????????????????# ###%## #???????? ?? | | ?????????????????# ! ! ##??????? #?? | | ???????????????# ##?????? #?? | | ???????????? % ##????? #?? | | ????????????? ##### #????? #?? | | ????????????? ##???## ###### ### | | ?????????????? ### ?????## | | ??????????????# #??# ??????# | | ??????????????#### ##???# ??????## ### #### | +----------------------------------------------------+ Best States ------------- Heat Dissipation 38 Energy Generation 14 Energy Capacity 265 Matter Stores 300 Matter Capacity 300 Sight Range 16 Terrain Scan Density 10 Evasion (%) 50 Recoil Reduction 3 Item Schematics ----------------- None Robot Schematics ------------------ None Fabricated ------------ Nothing Repaired ---------- Nothing Studied --------- None Alien Tech Used ----------------- None Achievements -------------- Everything Is Under Control Challenges ------------ None Game ------ Seed LongswordMetafiberSword Manual? 0 Play Time 00:18:37 Cumulative 5.7 hours Start 2026.07.17 @ 21:27:16 End 2026.07.17 @ 21:44:42 Sessions 1 Manual Loads 0 Difficulty Rogue Special Mode None Game No. 4 Rogue 4 Adventurer 0 Explorer 0 Win Type - Total 0 Types 0/0/0/0/0/0/0/0/0/0 Lore% 2 Gallery% 11 Achievement% 7 Wizard Run 0 Options --------- Layout 1 ASCII 0 Keyboard 0 Movement Mouse Keybinds 0 Fullscreen 1 Font 24/Smallcaps Map View 50x35 Zoom Use 0% Tactical HUD 0 Map Filters NONE Filters NONE Steam SD RUN: b8b49be6-65cc-42b2-973c-3fb89e6a355d